[Event "Late-Titled-Tuesday-Blitz-May-14-2024"]
[Site "Chess.com"]
[Date "2024.05.14"]
[Round "8"]
[White "DishonorOnYourCow"]
[Black "patzer-reloaded"]
[Result "1-0"]
[WhiteElo "2539"]
[BlackElo "2378"]
[TimeControl "180+1"]
[EndTime "15:26:22 PDT"]
[Termination "DishonorOnYourCow won on time"]

1. d4 {[%clk 0:03:00.9]} 1... Nf6 {[%clk 0:02:57]} 2. c4 {[%clk 0:03:01.2]} 2...
e6 {[%clk 0:02:57.9]} 3. Nf3 {[%clk 0:03:01.2]} 3... d5 {[%clk 0:02:54.5]} 4.
Nc3 {[%clk 0:03:00.8]} 4... Bb4 {[%clk 0:02:53.7]} 5. Bg5 {[%clk 0:02:59.8]}
5... h6 {[%clk 0:02:52]} 6. Bxf6 {[%clk 0:02:59.1]} 6... Qxf6 {[%clk 0:02:49.7]}
7. Qa4+ {[%clk 0:02:59.5]} 7... Nc6 {[%clk 0:02:49.3]} 8. e3 {[%clk 0:02:59]}
8... O-O {[%clk 0:02:48.4]} 9. Be2 {[%clk 0:02:59.2]} 9... dxc4 {[%clk
0:02:47.4]} 10. O-O {[%clk 0:02:58.5]} 10... a6 {[%clk 0:02:01.1]} 11. Bxc4
{[%clk 0:02:53.5]} 11... Bxc3 {[%clk 0:01:28.3]} 12. bxc3 {[%clk 0:02:53.5]}
12... e5 {[%clk 0:01:28.1]} 13. d5 {[%clk 0:02:43.6]} 13... e4 {[%clk
0:01:13.4]} 14. Nd2 {[%clk 0:02:33.5]} 14... Ne5 {[%clk 0:01:11.4]} 15. Nxe4
{[%clk 0:02:26]} 15... Qg6 {[%clk 0:01:11.1]} 16. Be2 {[%clk 0:02:25]} 16... Rd8
{[%clk 0:00:41.9]} 17. Rad1 {[%clk 0:01:54.3]} 17... Bf5 {[%clk 0:00:41.3]} 18.
f3 {[%clk 0:01:40.6]} 18... Bxe4 {[%clk 0:00:33.7]} 19. Qxe4 {[%clk 0:01:39.8]}
19... Qxe4 {[%clk 0:00:32.4]} 20. fxe4 {[%clk 0:01:40.7]} 20... b5 {[%clk
0:00:27]} 21. a4 {[%clk 0:01:37.3]} 21... Rdb8 {[%clk 0:00:09]} 22. Rd4 {[%clk
0:01:29.5]} 22... bxa4 {[%clk 0:00:07.2]} 23. Rxa4 {[%clk 0:01:29.6]} 23... Rb3
{[%clk 0:00:08.1]} 24. Rc1 {[%clk 0:01:26.5]} 24... a5 {[%clk 0:00:08.2]} 25.
Kf2 {[%clk 0:01:21.5]} 25... g5 {[%clk 0:00:04.9]} 26. c4 {[%clk 0:01:21.6]}
26... Nd7 {[%clk 0:00:03.6]} 27. c5 {[%clk 0:01:21.3]} 27... Rb2 {[%clk
0:00:03.6]} 28. Kf1 {[%clk 0:00:57.7]} 28... Ne5 {[%clk 0:00:04.5]} 29. c6
{[%clk 0:00:51.1]} 29... Rab8 {[%clk 0:00:04]} 30. d6 {[%clk 0:00:50.2]} 30...
cxd6 {[%clk 0:00:03.6]} 31. c7 {[%clk 0:00:50.6]} 31... Rc8 {[%clk 0:00:02]} 32.
Ba6 {[%clk 0:00:49.4]} 1-0

[Event "Late-Titled-Tuesday-Blitz-May-14-2024"]
[Site "Chess.com"]
[Date "2024.05.14"]
[Round "8"]
[White "ClauAmura"]
[Black "noret"]
[Result "1-0"]
[WhiteElo "2356"]
[BlackElo "2140"]
[TimeControl "180+1"]
[EndTime "15:26:22 PDT"]
[Termination "ClauAmura won on time"]

1. d4 {[%clk 0:03:00.9]} 1... Nf6 {[%clk 0:02:56.6]} 2. Bg5 {[%clk 0:03:00.4]}
2... d5 {[%clk 0:02:51.4]} 3. e3 {[%clk 0:02:59.2]} 3... Bf5 {[%clk 0:02:36.5]}
4. Bd3 {[%clk 0:02:47.2]} 4... Ne4 {[%clk 0:02:28.4]} 5. Bf4 {[%clk 0:02:45.1]}
5... f6 {[%clk 0:02:21]} 6. Nf3 {[%clk 0:02:44.7]} 6... Nd7 {[%clk 0:02:12.3]}
7. h3 {[%clk 0:02:44.3]} 7... c5 {[%clk 0:02:09.2]} 8. Nbd2 {[%clk 0:02:33.5]}
8... Qb6 {[%clk 0:01:40.2]} 9. Nh4 {[%clk 0:02:24.5]} 9... Nxd2 {[%clk
0:01:13.5]} 10. Nxf5 {[%clk 0:02:12]} 10... Ne4 {[%clk 0:01:05.5]} 11. Rb1
{[%clk 0:01:58.8]} 11... e6 {[%clk 0:01:00.9]} 12. Ng3 {[%clk 0:01:53.6]} 12...
Nxg3 {[%clk 0:00:58.2]} 13. Bxg3 {[%clk 0:01:54.5]} 13... cxd4 {[%clk
0:00:57.6]} 14. Qh5+ {[%clk 0:01:51.9]} 14... Kd8 {[%clk 0:00:36.6]} 15. O-O
{[%clk 0:01:47.1]} 15... dxe3 {[%clk 0:00:34.4]} 16. Rfe1 {[%clk 0:01:47.3]}
16... Bc5 {[%clk 0:00:28.4]} 17. fxe3 {[%clk 0:01:40.3]} 17... Bxe3+ {[%clk
0:00:27.2]} 18. Kh2 {[%clk 0:01:41.2]} 18... Ke7 {[%clk 0:00:19.5]} 19. Qf3
{[%clk 0:01:40.1]} 19... Bc5 {[%clk 0:00:14.2]} 20. Qxd5 {[%clk 0:01:39.6]}
20... Rhe8 {[%clk 0:00:10.9]} 21. b4 {[%clk 0:01:29.2]} 21... Bg1+ {[%clk
0:00:10.2]} 22. Kh1 {[%clk 0:01:27.2]} 22... Bd4 {[%clk 0:00:10.4]} 23. Bxh7
{[%clk 0:01:17.5]} 23... Ne5 {[%clk 0:00:09.2]} 24. Qe4 {[%clk 0:01:14.4]} 24...
Rh8 {[%clk 0:00:08.9]} 25. Bxe5 {[%clk 0:01:11.4]} 25... Bxe5 {[%clk 0:00:08.7]}
26. Bg6 {[%clk 0:01:10.2]} 26... Rad8 {[%clk 0:00:08.5]} 27. c4 {[%clk
0:01:09.4]} 27... Rd4 {[%clk 0:00:08.5]} 28. Qe2 {[%clk 0:01:05]} 28... Qc6
{[%clk 0:00:08.6]} 29. Be4 {[%clk 0:01:02.5]} 29... Qxc4 {[%clk 0:00:06.2]} 30.
Qf3 {[%clk 0:00:52.3]} 1-0

[Event "Late-Titled-Tuesday-Blitz-May-14-2024"]
[Site "Chess.com"]
[Date "2024.05.14"]
[Round "8"]
[White "Godzillator"]
[Black "m_ezat"]
[Result "0-1"]
[WhiteElo "2439"]
[BlackElo "2612"]
[TimeControl "180+1"]
[EndTime "15:26:23 PDT"]
[Termination "m_ezat won by resignation"]

1. c3 {[%clk 0:03:00.9]} 1... e5 {[%clk 0:02:44.9]} 2. d4 {[%clk 0:03:01.8]}
2... exd4 {[%clk 0:02:44.6]} 3. cxd4 {[%clk 0:03:01.3]} 3... Nf6 {[%clk
0:02:45.3]} 4. Nc3 {[%clk 0:03:00.3]} 4... Bb4 {[%clk 0:02:44.9]} 5. Qc2 {[%clk
0:02:45.9]} 5... d5 {[%clk 0:02:40.1]} 6. Bg5 {[%clk 0:02:44.9]} 6... c5 {[%clk
0:02:40]} 7. e3 {[%clk 0:02:45]} 7... cxd4 {[%clk 0:02:39.8]} 8. exd4 {[%clk
0:02:44.9]} 8... Nc6 {[%clk 0:02:39.4]} 9. Nf3 {[%clk 0:02:44.8]} 9... Bg4
{[%clk 0:02:38.1]} 10. a3 {[%clk 0:02:40.8]} 10... Bxf3 {[%clk 0:02:31.1]} 11.
axb4 {[%clk 0:02:40.7]} 11... Bh5 {[%clk 0:02:23.1]} 12. Bb5 {[%clk 0:02:26.2]}
12... Qe7+ {[%clk 0:02:19.7]} 13. Kf1 {[%clk 0:02:23.1]} 13... Qxb4 {[%clk
0:02:10.5]} 14. Bxf6 {[%clk 0:02:15.8]} 14... gxf6 {[%clk 0:02:08.5]} 15. Re1+
{[%clk 0:01:59.1]} 15... Kf8 {[%clk 0:02:07.8]} 16. Bxc6 {[%clk 0:01:46.7]}
16... bxc6 {[%clk 0:02:06.7]} 17. Qf5 {[%clk 0:01:43.4]} 17... Bg6 {[%clk
0:01:45.2]} 18. Qxf6 {[%clk 0:01:43.3]} 18... Rg8 {[%clk 0:01:45]} 19. Qxc6
{[%clk 0:01:31.4]} 19... Kg7 {[%clk 0:01:37.6]} 20. Nxd5 {[%clk 0:01:30.8]}
20... Qxd4 {[%clk 0:01:37.2]} 21. Qc3 {[%clk 0:01:28.1]} 21... Qxc3 {[%clk
0:01:34.8]} 22. Nxc3 {[%clk 0:01:27.5]} 22... Rab8 {[%clk 0:01:33.9]} 23. Nd1
{[%clk 0:01:14.1]} 23... Rge8 {[%clk 0:01:25.2]} 24. Rxe8 {[%clk 0:01:10.5]}
24... Rxe8 {[%clk 0:01:24.2]} 25. f3 {[%clk 0:00:54.2]} 25... Rc8 {[%clk
0:01:04.6]} 26. Kf2 {[%clk 0:00:52]} 26... Rc2+ {[%clk 0:01:04.1]} 27. Kg3
{[%clk 0:00:52]} 27... a5 {[%clk 0:01:01]} 28. Re1 {[%clk 0:00:51.5]} 28... Rc1
{[%clk 0:01:00.6]} 29. Kf2 {[%clk 0:00:50.1]} 29... Rb1 {[%clk 0:00:59.7]} 30.
Ke3 {[%clk 0:00:40.9]} 30... Bc2 {[%clk 0:00:52.2]} 31. Ke2 {[%clk 0:00:40.2]}
31... Bxd1+ {[%clk 0:00:49.8]} 32. Rxd1 {[%clk 0:00:40.5]} 32... Rxb2+ {[%clk
0:00:50.3]} 33. Rd2 {[%clk 0:00:40.7]} 33... Rxd2+ {[%clk 0:00:49.8]} 34. Kxd2
{[%clk 0:00:41.3]} 34... Kf6 {[%clk 0:00:50.2]} 35. Kc3 {[%clk 0:00:41.7]} 35...
Ke5 {[%clk 0:00:50.1]} 36. g3 {[%clk 0:00:39.2]} 36... a4 {[%clk 0:00:48.4]} 37.
Kc4 {[%clk 0:00:36.6]} 37... a3 {[%clk 0:00:47.2]} 38. Kb3 {[%clk 0:00:36.1]}
38... Kd4 {[%clk 0:00:47.6]} 39. Kxa3 {[%clk 0:00:36.2]} 39... Ke3 {[%clk
0:00:48.3]} 40. f4 {[%clk 0:00:36.4]} 40... Kf3 {[%clk 0:00:48.5]} 41. Kb4
{[%clk 0:00:36.4]} 41... Kg2 {[%clk 0:00:48.6]} 42. Kc5 {[%clk 0:00:35.7]} 42...
Kxh2 {[%clk 0:00:48.8]} 43. f5 {[%clk 0:00:35.8]} 43... Kxg3 {[%clk 0:00:48.6]}
44. f6 {[%clk 0:00:36.1]} 44... Kf4 {[%clk 0:00:48.2]} 45. Kd6 {[%clk
0:00:36.5]} 45... Kf5 {[%clk 0:00:48.3]} 46. Ke7 {[%clk 0:00:36.6]} 46... Kg6
{[%clk 0:00:48.6]} 0-1

[Event "Late-Titled-Tuesday-Blitz-May-14-2024"]
[Site "Chess.com"]
[Date "2024.05.14"]
[Round "8"]
[White "LiemLe"]
[Black "frederiksvane"]
[Result "1-0"]
[WhiteElo "3056"]
[BlackElo "2955"]
[TimeControl "180+1"]
[EndTime "15:26:25 PDT"]
[Termination "LiemLe won by resignation"]

1. c4 {[%clk 0:03:00.9]} 1... e6 {[%clk 0:03:00]} 2. Nc3 {[%clk 0:02:58.7]} 2...
d5 {[%clk 0:03:00.2]} 3. d4 {[%clk 0:02:59.4]} 3... c6 {[%clk 0:03:00]} 4. Nf3
{[%clk 0:02:53.2]} 4... Nf6 {[%clk 0:02:56.6]} 5. Bg5 {[%clk 0:02:52.2]} 5... h6
{[%clk 0:02:56.6]} 6. Bxf6 {[%clk 0:02:52.2]} 6... Qxf6 {[%clk 0:02:57.5]} 7. e3
{[%clk 0:02:52.7]} 7... Nd7 {[%clk 0:02:54.8]} 8. Be2 {[%clk 0:02:52.1]} 8... g6
{[%clk 0:02:54.7]} 9. O-O {[%clk 0:02:52.3]} 9... Bg7 {[%clk 0:02:54.9]} 10.
cxd5 {[%clk 0:02:39.4]} 10... exd5 {[%clk 0:02:53.6]} 11. b4 {[%clk 0:02:40.1]}
11... O-O {[%clk 0:02:50]} 12. b5 {[%clk 0:02:40.3]} 12... Qd6 {[%clk
0:02:47.5]} 13. Rc1 {[%clk 0:02:38.5]} 13... Nb6 {[%clk 0:02:37.4]} 14. bxc6
{[%clk 0:02:35.1]} 14... bxc6 {[%clk 0:02:37.5]} 15. Na4 {[%clk 0:02:34.3]}
15... Bf5 {[%clk 0:02:33.6]} 16. Nc5 {[%clk 0:02:31.3]} 16... Rab8 {[%clk
0:02:32.8]} 17. Nd2 {[%clk 0:02:25.7]} 17... h5 {[%clk 0:02:29]} 18. Bd3 {[%clk
0:02:17.5]} 18... Bg4 {[%clk 0:02:26]} 19. Qc2 {[%clk 0:02:17.7]} 19... Qe7
{[%clk 0:02:10.6]} 20. h3 {[%clk 0:02:08.9]} 20... Bc8 {[%clk 0:02:10.7]} 21.
Na6 {[%clk 0:02:09.6]} 21... Bxa6 {[%clk 0:01:57.1]} 22. Bxa6 {[%clk 0:02:10.5]}
22... Qa3 {[%clk 0:01:57.2]} 23. Qd3 {[%clk 0:02:01.2]} 23... Qd6 {[%clk
0:01:45.2]} 24. Rc2 {[%clk 0:01:57.4]} 24... Nd7 {[%clk 0:01:44.9]} 25. Rfc1
{[%clk 0:01:54.2]} 25... Rb6 {[%clk 0:01:44.6]} 26. Nb3 {[%clk 0:01:54.7]} 26...
Nb8 {[%clk 0:00:26.1]} 27. Nc5 {[%clk 0:01:54.8]} 27... Bf6 {[%clk 0:00:25.3]}
28. a4 {[%clk 0:01:30.5]} 28... Nxa6 {[%clk 0:00:09.2]} 29. Nxa6 {[%clk
0:01:31.4]} 29... Rc8 {[%clk 0:00:09.8]} 30. Nc5 {[%clk 0:01:28.1]} 30... Bd8
{[%clk 0:00:08.3]} 31. e4 {[%clk 0:01:18.2]} 31... dxe4 {[%clk 0:00:09.2]} 32.
Nxe4 {[%clk 0:01:18.7]} 32... Qe7 {[%clk 0:00:09.2]} 33. d5 {[%clk 0:01:18.2]}
33... Rb4 {[%clk 0:00:05.8]} 34. Rc4 {[%clk 0:01:09.9]} 34... Rxc4 {[%clk
0:00:03.8]} 35. Rxc4 {[%clk 0:01:10.8]} 35... Qd7 {[%clk 0:00:03.1]} 36. d6
{[%clk 0:01:03.7]} 36... Rb8 {[%clk 0:00:03.5]} 37. Nc5 {[%clk 0:01:02.1]} 37...
Qe8 {[%clk 0:00:03.3]} 38. Re4 {[%clk 0:01:02.1]} 38... Qf8 {[%clk 0:00:03.3]}
39. Nd7 {[%clk 0:01:02.7]} 39... Qh6 {[%clk 0:00:01.5]} 1-0

[Event "Late-Titled-Tuesday-Blitz-May-14-2024"]
[Site "Chess.com"]
[Date "2024.05.14"]
[Round "8"]
[White "Art10ECHR"]
[Black "AlexOstrovskiy"]
[Result "0-1"]
[WhiteElo "2505"]
[BlackElo "2726"]
[TimeControl "180+1"]
[EndTime "15:26:25 PDT"]
[Termination "AlexOstrovskiy won on time"]

1. d4 {[%clk 0:03:00.9]} 1... Nf6 {[%clk 0:02:56.1]} 2. c4 {[%clk 0:03:00.9]}
2... c5 {[%clk 0:02:55.1]} 3. d5 {[%clk 0:03:00.9]} 3... e5 {[%clk 0:02:54.2]}
4. Nc3 {[%clk 0:03:00.6]} 4... d6 {[%clk 0:02:54.5]} 5. e4 {[%clk 0:02:57.9]}
5... Be7 {[%clk 0:02:54.9]} 6. Bd3 {[%clk 0:02:56.4]} 6... Nbd7 {[%clk
0:02:54.9]} 7. Nge2 {[%clk 0:02:56.8]} 7... h5 {[%clk 0:02:55.1]} 8. O-O {[%clk
0:02:51.5]} 8... h4 {[%clk 0:02:53.7]} 9. a3 {[%clk 0:02:39.3]} 9... Nh5 {[%clk
0:02:49.4]} 10. b4 {[%clk 0:02:35.6]} 10... b6 {[%clk 0:02:49.7]} 11. Rb1 {[%clk
0:02:20.9]} 11... a6 {[%clk 0:02:46.9]} 12. Bc2 {[%clk 0:02:16.3]} 12... Bg5
{[%clk 0:02:37.8]} 13. Ba4 {[%clk 0:02:12.6]} 13... O-O {[%clk 0:02:36.3]} 14.
Bc6 {[%clk 0:01:57.9]} 14... Ra7 {[%clk 0:02:36.3]} 15. Na4 {[%clk 0:01:51]}
15... Bxc1 {[%clk 0:02:21]} 16. Qxc1 {[%clk 0:01:50.7]} 16... cxb4 {[%clk
0:02:13.5]} 17. Rxb4 {[%clk 0:01:35.7]} 17... Nc5 {[%clk 0:02:02.6]} 18. Nxc5
{[%clk 0:01:18.3]} 18... bxc5 {[%clk 0:02:03.5]} 19. Rb3 {[%clk 0:01:13.6]}
19... f5 {[%clk 0:01:52.8]} 20. exf5 {[%clk 0:00:58.9]} 20... Bxf5 {[%clk
0:01:53.7]} 21. Qe3 {[%clk 0:00:36]} 21... Raf7 {[%clk 0:01:52.6]} 22. a4 {[%clk
0:00:25.7]} 22... h3 {[%clk 0:01:39.4]} 23. g3 {[%clk 0:00:24.6]} 23... Bg4
{[%clk 0:01:39.9]} 24. f4 {[%clk 0:00:18.6]} 24... exf4 {[%clk 0:01:14.7]} 25.
Nxf4 {[%clk 0:00:18.3]} 25... Nxf4 {[%clk 0:01:15]} 26. Rxf4 {[%clk 0:00:19]}
26... Rxf4 {[%clk 0:01:15.3]} 27. gxf4 {[%clk 0:00:19.8]} 27... Qf6 {[%clk
0:01:15.9]} 28. Rb7 {[%clk 0:00:16.6]} 28... Qa1+ {[%clk 0:00:59]} 29. Kf2
{[%clk 0:00:15.6]} 29... Qa2+ {[%clk 0:00:59.7]} 30. Kg3 {[%clk 0:00:15.9]}
30... Qg2+ {[%clk 0:00:58.2]} 31. Kh4 {[%clk 0:00:16.5]} 31... Bc8 {[%clk
0:00:54.2]} 32. Qg3 {[%clk 0:00:02.3]} 32... Bxb7 {[%clk 0:00:42.6]} 0-1

[Event "Late-Titled-Tuesday-Blitz-May-14-2024"]
[Site "Chess.com"]
[Date "2024.05.14"]
[Round "8"]
[White "FredddieCroderg"]
[Black "HowTo2Draw"]
[Result "0-1"]
[WhiteElo "2336"]
[BlackElo "2585"]
[TimeControl "180+1"]
[EndTime "15:26:25 PDT"]
[Termination "HowTo2Draw won on time"]

1. e4 {[%clk 0:01:12.2]} 1... c6 {[%clk 0:02:58.2]} 2. d4 {[%clk 0:01:11.7]}
2... d5 {[%clk 0:02:57.9]} 3. exd5 {[%clk 0:01:12.6]} 3... cxd5 {[%clk
0:02:57.8]} 4. Bd3 {[%clk 0:01:13.5]} 4... Nf6 {[%clk 0:02:57.6]} 5. Nf3 {[%clk
0:01:14.4]} 5... Nc6 {[%clk 0:02:57.8]} 6. O-O {[%clk 0:01:15.3]} 6... Bg4
{[%clk 0:02:56.1]} 7. c3 {[%clk 0:01:16.2]} 7... e6 {[%clk 0:02:56.3]} 8. Re1
{[%clk 0:01:17.1]} 8... Be7 {[%clk 0:02:56.1]} 9. Bg5 {[%clk 0:01:17.5]} 9...
O-O {[%clk 0:02:54]} 10. Nbd2 {[%clk 0:01:14.4]} 10... Rb8 {[%clk 0:02:51.6]}
11. Qb1 {[%clk 0:01:09.2]} 11... h6 {[%clk 0:02:45.6]} 12. Bh4 {[%clk 0:01:09]}
12... Bxf3 {[%clk 0:02:45.6]} 13. Nxf3 {[%clk 0:01:08.4]} 13... b5 {[%clk
0:02:46.2]} 14. Ne5 {[%clk 0:00:59.4]} 14... Nxe5 {[%clk 0:02:45.5]} 15. dxe5
{[%clk 0:00:59.5]} 15... Nd7 {[%clk 0:02:45.9]} 16. Bxe7 {[%clk 0:00:58.8]}
16... Qxe7 {[%clk 0:02:46.8]} 17. Qd1 {[%clk 0:00:55.2]} 17... b4 {[%clk
0:02:46.8]} 18. Qh5 {[%clk 0:00:50.3]} 18... bxc3 {[%clk 0:02:43.7]} 19. bxc3
{[%clk 0:00:49.5]} 19... Qg5 {[%clk 0:02:42.7]} 20. Qxg5 {[%clk 0:00:45.1]}
20... hxg5 {[%clk 0:02:43.6]} 21. c4 {[%clk 0:00:28.2]} 21... Nc5 {[%clk
0:02:42]} 22. Bf1 {[%clk 0:00:27.7]} 22... d4 {[%clk 0:02:41.7]} 23. Rad1 {[%clk
0:00:25.3]} 23... Rfd8 {[%clk 0:02:41.4]} 24. Rd2 {[%clk 0:00:20.8]} 24... Rb7
{[%clk 0:02:27.6]} 25. Red1 {[%clk 0:00:19.2]} 25... Rbd7 {[%clk 0:02:27.9]} 26.
Rb1 {[%clk 0:00:19.3]} 26... Kh7 {[%clk 0:02:24.9]} 27. Rb5 {[%clk 0:00:19]}
27... Rc7 {[%clk 0:02:25.1]} 28. f3 {[%clk 0:00:15.5]} 28... Kg6 {[%clk
0:02:23.8]} 29. Kf2 {[%clk 0:00:15.6]} 29... Kf5 {[%clk 0:02:20.7]} 30. Re2
{[%clk 0:00:15.6]} 30... Nd3+ {[%clk 0:02:17.4]} 31. Kg1 {[%clk 0:00:15.2]}
31... Rc5 {[%clk 0:02:08.7]} 32. g4+ {[%clk 0:00:12.9]} 32... Kg6 {[%clk
0:02:04.1]} 33. Rd2 {[%clk 0:00:11.8]} 33... Nxe5 {[%clk 0:01:58.6]} 34. Rxc5
{[%clk 0:00:11]} 34... Nxf3+ {[%clk 0:01:58.6]} 35. Kf2 {[%clk 0:00:11]} 35...
Nxd2 {[%clk 0:01:59]} 36. Bd3+ {[%clk 0:00:11.1]} 36... f5 {[%clk 0:01:54.1]}
37. gxf5+ {[%clk 0:00:08.7]} 37... exf5 {[%clk 0:01:55]} 38. Bxf5+ {[%clk
0:00:08.6]} 38... Kf6 {[%clk 0:01:55.3]} 39. Ke2 {[%clk 0:00:07.8]} 39... Rh8
{[%clk 0:01:47]} 40. Kxd2 {[%clk 0:00:04.6]} 40... Rxh2+ {[%clk 0:01:47.6]} 41.
Kd3 {[%clk 0:00:04.8]} 41... Rxa2 {[%clk 0:01:48.5]} 42. Kxd4 {[%clk 0:00:04.3]}
42... a5 {[%clk 0:01:45.5]} 43. Bd3 {[%clk 0:00:04.1]} 43... g4 {[%clk
0:01:43.9]} 44. Rf5+ {[%clk 0:00:03.6]} 44... Ke6 {[%clk 0:01:44.2]} 45. Rg5
{[%clk 0:00:03.9]} 45... Kf6 {[%clk 0:01:42.2]} 46. Rxg4 {[%clk 0:00:03.3]}
46... g5 {[%clk 0:01:42.6]} 47. Re4 {[%clk 0:00:02.4]} 47... a4 {[%clk
0:01:42.8]} 48. Re8 {[%clk 0:00:02.1]} 48... g4 {[%clk 0:01:39.8]} 49. Ra8
{[%clk 0:00:02]} 49... a3 {[%clk 0:01:36.8]} 50. c5 {[%clk 0:00:02.1]} 50... Ra1
{[%clk 0:01:37.2]} 51. c6 {[%clk 0:00:02.1]} 51... a2 {[%clk 0:01:37]} 52. c7
{[%clk 0:00:01.8]} 52... Rc1 {[%clk 0:01:37.6]} 0-1

[Event "Late-Titled-Tuesday-Blitz-May-14-2024"]
[Site "Chess.com"]
[Date "2024.05.14"]
[Round "8"]
[White "Sanyura"]
[Black "FuenfgegenWilly"]
[Result "1-0"]
[WhiteElo "2646"]
[BlackElo "2455"]
[TimeControl "180+1"]
[EndTime "15:26:26 PDT"]
[Termination "Sanyura won by resignation"]

1. e4 {[%clk 0:02:49.8]} 1... c5 {[%clk 0:02:59.6]} 2. Nf3 {[%clk 0:02:49.6]}
2... a6 {[%clk 0:02:59.8]} 3. c3 {[%clk 0:02:49.1]} 3... e6 {[%clk 0:02:59.5]}
4. d4 {[%clk 0:02:49.6]} 4... d5 {[%clk 0:02:59.8]} 5. exd5 {[%clk 0:02:49.5]}
5... exd5 {[%clk 0:03:00.1]} 6. Bd3 {[%clk 0:02:48.2]} 6... c4 {[%clk
0:03:00.6]} 7. Be2 {[%clk 0:02:41.5]} 7... Bd6 {[%clk 0:03:01.5]} 8. O-O {[%clk
0:02:41.4]} 8... Nf6 {[%clk 0:03:01.5]} 9. b3 {[%clk 0:02:41.7]} 9... cxb3
{[%clk 0:03:01.4]} 10. axb3 {[%clk 0:02:40.7]} 10... O-O {[%clk 0:03:02.3]} 11.
Bg5 {[%clk 0:02:40.8]} 11... h6 {[%clk 0:03:02.4]} 12. Bh4 {[%clk 0:02:41]}
12... Nc6 {[%clk 0:03:01.5]} 13. c4 {[%clk 0:02:40.4]} 13... Be7 {[%clk
0:02:59.1]} 14. Nc3 {[%clk 0:02:31.8]} 14... Bg4 {[%clk 0:02:57.6]} 15. Bxf6
{[%clk 0:02:21.7]} 15... Bxf6 {[%clk 0:02:57.4]} 16. Nxd5 {[%clk 0:02:22.2]}
16... Bxf3 {[%clk 0:02:57.7]} 17. Nxf6+ {[%clk 0:02:22.3]} 17... Qxf6 {[%clk
0:02:58]} 18. Bxf3 {[%clk 0:02:23]} 18... Qxd4 {[%clk 0:02:51.8]} 19. Bxc6
{[%clk 0:02:22.3]} 19... Qxd1 {[%clk 0:02:52]} 20. Rfxd1 {[%clk 0:02:23.2]}
20... bxc6 {[%clk 0:02:51.9]} 21. Rd6 {[%clk 0:02:23.6]} 21... Rfb8 {[%clk
0:02:50.6]} 22. Ra3 {[%clk 0:02:21.1]} 22... Rd8 {[%clk 0:02:45.4]} 23. Rxa6
{[%clk 0:02:20.5]} 23... Rxd6 {[%clk 0:02:27.7]} 24. Rxa8+ {[%clk 0:02:19.1]}
24... Kh7 {[%clk 0:02:28.6]} 25. g3 {[%clk 0:02:18.9]} 25... Rd3 {[%clk
0:02:23.8]} 26. Rb8 {[%clk 0:02:18.3]} 26... f5 {[%clk 0:02:19.3]} 27. Kf1
{[%clk 0:02:17.6]} 27... Rc3 {[%clk 0:02:12.9]} 28. Ke2 {[%clk 0:02:16]} 28...
Rc2+ {[%clk 0:02:12.9]} 29. Ke3 {[%clk 0:02:15.6]} 29... g5 {[%clk 0:02:08.5]}
30. Rb6 {[%clk 0:01:20.1]} 30... h5 {[%clk 0:01:52.3]} 31. Rxc6 {[%clk 0:01:15]}
31... Rc3+ {[%clk 0:01:51.6]} 32. Kd4 {[%clk 0:01:15.1]} 32... Rxb3 {[%clk
0:01:52.5]} 33. f4 {[%clk 0:01:15.5]} 33... h4 {[%clk 0:01:38.2]} 34. gxh4
{[%clk 0:01:06.8]} 34... gxf4 {[%clk 0:01:12.5]} 35. Rf6 {[%clk 0:01:05.8]}
35... Rh3 {[%clk 0:01:12.3]} 36. c5 {[%clk 0:00:59.5]} 36... Rxh4 {[%clk
0:01:07.8]} 37. Rxf5 {[%clk 0:00:59.8]} 37... Kg6 {[%clk 0:01:07.4]} 38. Ke5
{[%clk 0:00:54]} 38... Rxh2 {[%clk 0:00:19.9]} 39. Rxf4 {[%clk 0:00:53.8]} 39...
Rc2 {[%clk 0:00:20.8]} 40. Kd6 {[%clk 0:00:53.4]} 40... Kg5 {[%clk 0:00:21]} 41.
Rf1 {[%clk 0:00:51.4]} 1-0

[Event "Late-Titled-Tuesday-Blitz-May-14-2024"]
[Site "Chess.com"]
[Date "2024.05.14"]
[Round "8"]
[White "nindjaxx8"]
[Black "sergiochess83"]
[Result "0-1"]
[WhiteElo "2661"]
[BlackElo "2861"]
[TimeControl "180+1"]
[EndTime "15:26:32 PDT"]
[Termination "sergiochess83 won by checkmate"]

1. d4 {[%clk 0:02:52.7]} 1... d5 {[%clk 0:02:58.5]} 2. c4 {[%clk 0:02:50.5]}
2... c6 {[%clk 0:02:59]} 3. Nc3 {[%clk 0:02:49.1]} 3... Nf6 {[%clk 0:02:58.5]}
4. cxd5 {[%clk 0:02:49.4]} 4... cxd5 {[%clk 0:02:58.1]} 5. Bf4 {[%clk
0:02:49.4]} 5... Nc6 {[%clk 0:02:54.9]} 6. e3 {[%clk 0:02:48.8]} 6... Bg4 {[%clk
0:02:52.8]} 7. Be2 {[%clk 0:02:45.2]} 7... Bxe2 {[%clk 0:02:49.5]} 8. Ngxe2
{[%clk 0:02:46.1]} 8... e6 {[%clk 0:02:37]} 9. O-O {[%clk 0:02:38.5]} 9... Be7
{[%clk 0:02:34]} 10. Rc1 {[%clk 0:02:33.7]} 10... O-O {[%clk 0:02:33.9]} 11. Qb3
{[%clk 0:02:30.2]} 11... Na5 {[%clk 0:02:32.3]} 12. Qd1 {[%clk 0:02:24.4]} 12...
Rc8 {[%clk 0:02:16.4]} 13. Qd3 {[%clk 0:02:09.4]} 13... Qd7 {[%clk 0:02:02.7]}
14. Rfd1 {[%clk 0:01:51.7]} 14... Nc4 {[%clk 0:02:00.9]} 15. Qb1 {[%clk
0:01:48.1]} 15... Rc6 {[%clk 0:01:56.1]} 16. Rc2 {[%clk 0:01:40.7]} 16... Rfc8
{[%clk 0:01:54.7]} 17. Rdc1 {[%clk 0:01:40.2]} 17... h6 {[%clk 0:01:36.9]} 18.
h3 {[%clk 0:01:34.2]} 18... a6 {[%clk 0:01:31]} 19. Kh1 {[%clk 0:01:18]} 19...
b5 {[%clk 0:01:28.5]} 20. Ng1 {[%clk 0:01:16.9]} 20... b4 {[%clk 0:01:18.3]} 21.
Nce2 {[%clk 0:00:47.8]} 21... Ne4 {[%clk 0:01:12.5]} 22. Bg3 {[%clk 0:00:34.3]}
22... Bd6 {[%clk 0:00:56.9]} 23. Kh2 {[%clk 0:00:16]} 23... Nxf2 {[%clk
0:00:50]} 24. Bxd6 {[%clk 0:00:06.1]} 24... Qxd6+ {[%clk 0:00:49.8]} 25. Nf4
{[%clk 0:00:07]} 25... Nd3 {[%clk 0:00:32.7]} 26. b3 {[%clk 0:00:03.3]} 26...
Nxe3 {[%clk 0:00:28.2]} 27. Rxc6 {[%clk 0:00:03]} 27... Qxf4+ {[%clk 0:00:28.4]}
28. g3 {[%clk 0:00:02.6]} 28... Qf2+ {[%clk 0:00:28.7]} 29. Kh1 {[%clk
0:00:02.5]} 29... Qg2# {[%clk 0:00:29.1]} 0-1